bitfinex/quotes_SOLUSD_20240612
["timestamp","ask_amount","ask_price","bid_price","bid_amount"]
[1718217886984,16.3698,158.22,158.09,6.4351]
[1718217887198,17.23615034,158.27,158.1,0.17]
[1718217887199,13.83696828,158.27,158.1,0.17]
[1718217887401,4.6759,158.26,158.1,20.68]
[1718217887612,9.3523,158.25,158.1,20.68]
[1718217887792,2.3386,158.21,158.1,20.68]
[1718217887991,2.3385,158.22,158.1,20.68]
[1718217888203,4.6759,158.26,158.1,20.68]
[1718217888407,2.3391,158.18,158.1,20.17]
[1718217888591,7.0157,158.22,158.09,6.4351]
[1718217888796,25.1072,158.28,158.1,0.17]
[1718217888797,9.3522,158.26,158.1,0.17]
[1718217889001,6.1772,158.28,158.09,6.4351]
[1718217889202,9.3534,158.24,158.09,6.4351]
[1718217889512,100.0,158.26,158.09,6.4351]
[1718217889698,2.3403,158.1,158.07,15.4275]
[1718217889899,26.86,158.23,158.07,15.4275]
[1718217890103,107.23615034,158.25,158.07,15.4275]
[1718217890309,2.3391,158.18,158.07,15.4275]
[1718217890499,4.6774,158.21,158.07,15.4275]
[1718217890500,0.17,158.21,158.07,15.4275]
[1718217890814,0.68,158.21,158.07,15.4275]
[1718217891013,2.3391,158.18,158.08,20.0]
[1718217891206,5.3573,158.21,158.08,20.0]
[1718217891407,2.339,158.19,158.08,20.0]
[1718217891713,0.17,158.17,158.07,15.4275]
[1718217891914,0.34,158.17,158.07,15.4275]
[1718217892217,2.3396,158.14,158.07,15.4275]
[1718217892407,0.34,158.17,158.07,15.4275]
[1718217892610,5.1889,158.16,158.07,15.4275]
[1718217892800,20.0,158.15,158.07,15.4275]
[1718217893000,0.17,158.14,158.03,6.4242]
[1718217893210,2.34,158.12,158.03,6.4242]
[1718217893411,2.3403,158.1,158.03,6.4242]
[1718217893701,0.51,158.14,158.03,6.4242]
[1718217894017,2.34,158.12,158.03,6.4242]
[1718217894189,11.698,158.15,158.03,6.4242]
[1718217894390,9.3593,158.13,158.03,6.4242]
[1718217894613,2.3405,158.09,158.03,6.4242]
[1718217894820,20.0,158.12,158.03,6.4242]
[1718217895194,0.17,158.15,158.03,6.4242]
[1718217895394,0.68,158.15,158.03,6.4242]
[1718217895612,20.0,158.15,158.03,6.4242]
[1718217895821,2.3401,158.12,158.03,6.4242]
[1718217895997,20.0,158.15,158.03,6.4242]
[1718217895998,16.3782,158.14,158.03,6.4242]
[1718217896209,2.3408,158.07,158.03,6.4242]
[1718217896400,9.3604,158.12,158.03,6.4242]
[1718217896401,22.3405,158.09,158.03,6.4242]
[1718217896602,2.3406,158.08,158.03,6.4242]
[1718217896913,4.6812,158.08,158.01,15.9581]
[1718217897127,0.17,158.07,158.01,15.9581]
[1718217897301,2.3409,158.06,157.96,15.933]
[1718217897907,2.341,158.05,157.96,15.933]
[1718217898616,7.0246,158.02,157.93,6.0409]
[1718217898811,4.6835,158.0,157.87,6.5037]
[1718217899017,2.3426,157.95,157.87,9.036291]
[1718217899318,0.34,157.99,157.87,6.5037]
[1718217899513,2.3418,158.0,157.87,6.5037]
[1718217899818,0.17,158.0,157.87,6.5037]
[1718217899998,0.68,158.0,157.87,6.5037]
[1718217900199,22.3417,158.01,157.88,100.0]
[1718217900401,2.341,158.06,157.93,15.1252]
[1718217900601,0.34,158.07,157.93,15.1252]
[1718217900923,126.86,158.04,157.87,21.6289]
[1718217901133,4.6842,157.98,157.87,21.6289]
[1718217901300,4.6853,157.94,157.81,15.9873]
[1718217901506,18.93,157.93,157.81,15.9873]
[1718217901825,9.3743,157.88,157.75,0.0394255]
[1718217902000,2.3443,157.83,157.75,0.0394255]
[1718217902326,22.344,157.85,157.75,0.0394255]
[1718217902521,20.0,157.85,157.75,0.0394255]
[1718217902722,9.3705,157.95,157.75,100.0394255]
[1718217903021,0.17,157.93,157.76,26.86]
[1718217903234,2.3433,157.9,157.77,20.0]
[1718217903417,20.0,157.94,157.78,100.0]
[1718217903752,4.6861,157.92,157.79,20.0]
[1718217903896,2.3431,157.91,157.78,100.0]
[1718217904093,2.3429,157.92,157.79,20.0]
[1718217904428,2.3428,157.93,157.8,100.0]
[1718217904619,0.17,157.95,157.81,20.0]
[1718217904818,7.23615034,158.02,157.82,100.17]
[1718217904996,7.0262,157.98,157.84,0.17]
[1718217905201,7.23615034,158.02,157.84,0.17]
[1718217905416,4.6841,157.99,157.84,0.51]
[1718217905616,2.3419,157.99,157.87,0.17]
[1718217905926,2.343,157.92,157.86,16.1773]
[1718217906095,4.6845,157.97,157.86,16.1773]
[1718217906409,11.7091,158.0,157.86,16.1773]
[1718217906610,4.6837,158.0,157.86,16.1773]
[1718217906817,0.17,157.98,157.86,16.1773]
[1718217907322,2.3423,157.97,157.86,16.1773]
[1718217907521,2.3423,157.97,157.87,20.0]
[1718217907734,2.342,157.98,157.87,20.0]
[1718217907923,11.91845034,158.05,157.9,100.0]
[1718217908107,2.3413,158.03,157.93,106.6412]
[1718217908306,2.341,158.06,157.94,20.68]
[1718217908533,9.3611,158.1,157.94,20.68]
[1718217908742,16.3851,158.07,157.94,20.0]
[1718217908933,2.3421,157.98,157.93,6.6412]
[1718217909240,7.23615034,158.14,157.94,0.17]
[1718217909540,118.93,158.11,157.93,6.6412]
[1718217909741,2.3415,158.02,157.93,6.6412]
[1718217909912,4.6813,158.08,157.94,20.34]
[1718217910229,2.3417,158.01,157.93,6.6412]
[1718217910432,4.6818,158.06,157.93,6.6412]
[1718217910616,4.6811,158.09,157.94,0.34]
[1718217910930,100.0,158.1,157.93,6.6412]
[1718217911112,7.0228,158.06,157.93,6.6412]
[1718217911415,18.93,158.09,157.93,6.6412]
[1718217911605,118.93,158.06,157.93,6.6412]
[1718217911806,2.3422,157.97,157.87,6.5103]
[1718217912014,2.3428,157.94,157.87,6.5103]
[1718217912321,2.5125,157.95,157.87,6.5103]
[1718217912521,0.17,158.02,157.87,6.5103]
[1718217912715,2.3416,158.01,157.88,100.0]
[1718217913529,24.6823,158.05,157.9,0.17]
[1718217913733,38.93,158.05,157.9,0.17]
[1718217913935,28.297,158.0,157.87,6.5103]
[1718217914119,2.3426,157.95,157.87,6.5103]
[1718217914312,28.2985,157.98,157.87,6.5103]
[1718217914508,2.3433,157.9,157.84,6.0419]
[1718217914941,2.343,157.92,157.84,6.0419]
[1718217915128,2.3434,157.89,157.84,6.0419]
[1718217915329,0.51,157.91,157.8,15.3841]
[1718217915330,20.51,157.91,157.8,15.3841]
[1718217915547,2.3436,157.88,157.8,15.3841]
[1718217915860,0.17,157.96,157.8,15.3841]
[1718217916026,20.17,157.96,157.83,100.0]
[1718217916349,20.0,157.96,157.8,42.2441]
[1718217916534,2.3433,157.9,157.8,15.3841]
[1718217916727,2.3431,157.91,157.81,20.0]
[1718217917038,2.3426,157.94,157.82,0.51]
[1718217917243,20.0,157.96,157.84,0.17]
[1718217917438,11.7069,158.03,157.86,0.17]
[1718217917636,4.6826,158.03,157.88,0.17]
[1718217917853,2.3416,158.01,157.88,20.68]
[1718217918137,2.3413,158.03,157.91,6.333]
[1718217918445,2.3416,158.01,157.92,20.0]
[1718217918627,9.367,158.01,157.91,6.333]
[1718217918828,100.0,158.06,157.91,6.333]
[1718217919051,2.3429,157.93,157.91,6.333]
[1718217919224,4.6853,157.94,157.87,15.6415]
[1718217919547,16.3919,158.01,157.87,15.6415]
[1718217919736,2.3428,157.93,157.87,15.6415]
[1718217919918,20.0,157.96,157.87,15.6415]
[1718217920116,20.0,157.99,157.87,15.6415]
[1718217920330,2.3429,157.93,157.87,15.6415]
[1718217920537,38.93,157.99,157.86,6.1747]
[1718217920538,20.0,157.96,157.86,6.1747]
[1718217920736,2.3435,157.89,157.86,6.1747]
[1718217920942,2.3433,157.9,157.86,6.1747]
[1718217921130,20.0,157.91,157.86,6.1747]
[1718217921340,14.0544,157.96,157.86,6.1747]
[1718217921545,20.17,157.95,157.86,6.1747]
[1718217921744,2.3428,157.93,157.86,6.1747]
[1718217921945,2.3431,157.91,157.86,6.1747]
[1718217922155,4.6856,157.93,157.82,16.2927]
[1718217922332,2.3434,157.89,157.82,16.2927]
[1718217922831,20.34,157.92,157.82,16.2927]
[1718217923032,2.3434,157.89,157.82,16.2927]
[1718217923251,4.8568,157.89,157.81,6.6524]
[1718217923425,0.51,157.88,157.81,6.6524]
[1718217923621,2.3438,157.86,157.81,6.6524]
[1718217923953,2.3436,157.88,157.81,6.6524]
[1718217924331,20.0,157.9,157.81,6.6524]
[1718217924624,2.6834,157.89,157.81,6.6524]
[1718217924828,0.34,157.89,157.81,6.6524]
[1718217925326,2.3436,157.88,157.81,6.6524]
[1718217925532,2.3437,157.87,157.81,6.6524]
[1718217925730,9.3722,157.92,157.81,6.6524]
[1718217925936,2.3432,157.9,157.82,20.0]
[1718217926334,4.6865,157.9,157.81,6.6524]
[1718217926542,7.0308,157.88,157.81,6.6524]
[1718217926746,7.0312,157.87,157.77,15.6846]
[1718217926951,2.3444,157.83,157.77,15.6846]
[1718217927127,2.3448,157.8,157.77,15.6846]
[1718217927328,9.3759,157.85,157.77,15.6846]
[1718217927525,2.3446,157.81,157.77,15.6846]
[1718217927729,20.17,157.84,157.77,15.6846]
[1718217927937,2.3449,157.79,157.75,0.0394255]
[1718217928145,2.345,157.79,157.75,0.0394255]
[1718217928459,2.3453,157.76,157.75,0.0394255]
[1718217928955,11.7248,157.79,157.75,0.0394255]
[1718217928956,2.3451,157.77,157.75,0.0394255]
[1718217929125,0.17,157.77,157.75,0.0394255]
[1718217929454,23.9632,157.76,157.75,0.0394255]
[1718217929629,44.1332,157.76,157.75,0.0394255]
[1718217930040,22.5153,157.76,157.75,0.0394255]
[1718217930361,22.3453,157.76,157.75,0.0394255]
[1718217930655,20.0,157.76,157.75,0.0394255]
[1718217930835,22.5153,157.76,157.75,0.0394255]
[1718217931154,63.1432,157.76,157.75,0.0394255]
[1718217931472,63.1432,157.76,157.75,2.55e-05]
[1718217931754,108.1432,157.76,157.75,2.55e-05]
[1718217932148,108.1432,157.76,157.56,16.4484]
[1718217932149,84.69,157.76,157.56,16.4484]
[1718217932453,2.348,157.58,157.5,16.4484]
[1718217932654,6.0855,157.66,157.5,16.4484]
[1718217932655,0.17,157.63,157.5,15.9484]
[1718217932862,2.3476,157.61,157.5,15.9484]
[1718217933056,2.3474,157.62,157.5,15.9484]
[1718217933448,2.5176,157.61,157.5,15.9484]
[1718217933643,2.5178,157.6,157.5,15.9484]
[1718217933843,20.0,157.61,157.51,20.0]
[1718217934151,20.0,157.62,157.51,20.0]
[1718217934462,9.3886,157.64,157.5,15.9484]
[1718217934753,19.01,157.7,157.5,15.9484]
[1718217934754,0.68,157.63,157.5,15.9484]
[1718217934955,2.3474,157.62,157.5,15.9484]
[1718217935456,20.0,157.66,157.52,100.0]
[1718217935633,20.0,157.66,157.5,42.8084]
[1718217935634,20.0,157.66,157.53,6.051]
[1718217935834,2.3474,157.62,157.54,20.0]
[1718217936056,27.0408,157.66,157.53,6.051]
[1718217936057,4.6947,157.63,157.53,6.051]
[1718217936360,100.0,157.69,157.53,6.051]
[1718217936361,4.6934,157.67,157.53,6.051]
[1718217936660,19.01,157.71,157.54,20.0]
[1718217939544,0.17,157.6,157.53,6.051]
[1718217939743,2.5178,157.6,157.53,6.051]
[1718217939954,20.34,157.62,157.53,6.051]
[1718217940162,0.34,157.61,157.53,6.051]
[1718217940464,2.348,157.58,157.53,6.051]
[1718217940764,2.3479,157.59,157.53,6.051]
[1718217940943,4.6958,157.59,157.53,6.051]
[1718217941143,0.17,157.58,157.53,6.051]
[1718217941343,4.866,157.58,157.5,15.9484]
[1718217941642,2.3486,157.54,157.48,6.4137]
[1718217941848,2.3487,157.53,157.48,6.4137]
[1718217942050,2.3489,157.52,157.48,6.4137]
[1718217942243,4.8666,157.56,157.43,21.7964]
[1718217942244,0.17,157.53,157.43,21.7964]
[1718217942446,0.17,157.5,157.43,21.7964]
[1718217942642,2.3496,157.48,157.43,21.7964]
[1718217942843,2.6892,157.5,157.43,21.7964]
[1718217943042,2.3492,157.5,157.43,21.7964]
[1718217943343,4.6963,157.58,157.43,21.7964]
[1718217943550,4.696,157.58,157.43,21.7964]
[1718217943859,19.01,157.56,157.43,21.7964]
[1718217944170,2.3497,157.47,157.43,21.7964]
[1718217944547,2.3493,157.49,157.43,21.7964]
[1718217944946,2.5195,157.48,157.43,21.7964]
[1718217945172,0.51,157.5,157.43,21.7964]
[1718217945472,2.6894,157.49,157.43,21.7964]
[1718217945664,11.7447,157.52,157.43,21.7964]
[1718217945665,9.3928,157.57,157.43,21.7964]
[1718217945871,9.3934,157.56,157.43,21.7964]
[1718217946051,4.6969,157.55,157.43,21.7964]
[1718217946255,2.3493,157.5,157.43,21.7964]
[1718217946455,2.3491,157.51,157.43,21.7964]
[1718217946666,2.3492,157.5,157.43,21.7964]
[1718217946968,2.5191,157.51,157.43,21.7964]
[1718217947165,9.3931,157.57,157.44,0.17]
[1718217947347,9.3934,157.56,157.44,20.0]
[1718217947547,2.3492,157.5,157.43,24.1466]
[1718217947767,20.0,157.52,157.43,21.7964]
[1718217948075,27.0468,157.52,157.43,21.7964]
[1718217948249,2.3497,157.47,157.43,21.7964]
[1718217949056,14.092,157.54,157.43,21.7964]
[1718217949260,2.3489,157.52,157.45,2.3498]
[1718217949557,2.3488,157.53,157.46,2.3497]
[1718217949761,20.0,157.55,157.43,21.7964]
[1718217949949,2.3485,157.55,157.48,2.3495]
[1718217950149,2.3485,157.55,157.44,20.0]
[1718217950150,11.7424,157.55,157.44,20.0]
[1718217950346,4.6975,157.53,157.44,20.0]
[1718217950767,2.3489,157.52,157.44,20.0]
[1718217950977,20.0,157.54,157.44,20.0]
[1718217951161,2.3493,157.5,157.43,21.7964]
[1718217951356,24.6982,157.51,157.43,21.7964]
[1718217951665,20.0,157.51,157.37,6.0616]
[1718217951972,20.0,157.52,157.37,6.0616]
[1718217952177,0.17,157.51,157.37,6.0616]
[1718217952375,0.68,157.51,157.37,6.0616]
[1718217952678,0.51,157.51,157.38,100.0]
[1718217952976,20.0,157.54,157.4,100.0]
[1718217953272,20.0,157.54,157.47,8.5215]
[1718217953273,2.3486,157.54,157.47,8.5215]
[1718217953463,2.3488,157.53,157.47,6.172]
[1718217953786,22.3486,157.54,157.47,6.172]
[1718217954074,20.0,157.53,157.47,6.172]
[1718217954251,4.8678,157.52,157.46,15.9553]
[1718217954561,2.3493,157.49,157.46,15.9553]
[1718217954761,2.3493,157.49,157.43,6.063]
[1718217954762,0.17,157.5,157.43,6.063]
[1718217954951,2.3494,157.49,157.43,6.063]
[1718217955152,2.8591,157.51,157.43,6.063]
[1718217955469,0.51,157.51,157.45,2.3499]
[1718217955663,2.3489,157.52,157.45,2.3498]
[1718217955868,20.17,157.53,157.43,6.063]
[1718217956060,20.0,157.54,157.47,2.3496]
[1718217956267,0.51,157.55,157.46,2.3497]
[1718217956566,2.3488,157.53,157.44,20.0]
[1718217956770,0.51,157.55,157.44,20.0]
[1718217956970,2.3486,157.54,157.44,20.0]
[1718217957160,20.0,157.56,157.44,20.0]
[1718217957360,20.0,157.56,157.45,0.17]
[1718217957561,2.3487,157.54,157.44,20.0]
[1718217957775,22.3485,157.55,157.45,0.17]
[1718217957976,27.0446,157.57,157.44,20.0]
[1718217958184,2.3487,157.53,157.44,20.0]
[1718217958383,20.0,157.55,157.44,20.0]
[1718217958557,2.3485,157.55,157.44,20.0]
[1718217958758,2.3486,157.54,157.44,20.0]
[1718217958954,106.61179628,157.65,157.44,20.0]
[1718217959155,4.6963,157.57,157.45,0.17]
[1718217959462,4.6961,157.58,157.48,2.3493]
[1718217959770,0.17,157.58,157.45,0.17]
[1718217959987,2.3485,157.55,157.48,2.3495]
[1718217960362,36.4374,157.57,157.45,0.17]
[1718217960558,0.68,157.56,157.44,20.0]
[1718217960755,0.51,157.56,157.45,0.17]
[1718217960982,2.6883,157.56,157.45,0.68]
[1718217961563,0.34,157.56,157.44,20.0]
[1718217961767,7.2136,157.59,157.44,20.0]
[1718217961965,22.5181,157.58,157.45,100.0]
[1718217962187,9.3912,157.6,157.45,100.0]
[1718217962188,9.3908,157.6,157.46,20.0]
[1718217962373,2.3481,157.57,157.46,20.0]
[1718217962769,9.3934,157.56,157.46,20.0]
[1718217963072,11.7449,157.52,157.43,6.063]
[1718217963267,20.0,157.51,157.43,6.063]
[1718217963474,27.09,157.61,157.43,6.063]
[1718217963662,2.3484,157.55,157.48,2.3493]
[1718217963863,45.17,157.6,157.43,6.063]
[1718217963864,22.3482,157.57,157.43,6.063]
[1718217964163,2.3494,157.49,157.43,6.063]
[1718217964367,2.3493,157.49,157.43,6.063]
[1718217964597,2.3493,157.49,157.41,16.3298]
[1718217964598,100.0,157.55,157.41,16.3298]
[1718217964897,2.3498,157.46,157.41,16.3298]
[1718217965893,20.0,157.48,157.41,18.6802]
[1718217966074,2.3496,157.47,157.41,18.6802]
[1718217966269,2.3498,157.46,157.41,16.3298]
[1718217966473,24.8692,157.48,157.41,16.3298]
[1718217966778,0.51,157.47,157.41,16.3298]
[1718217966974,0.17,157.47,157.41,18.6802]
[1718217967180,20.0,157.48,157.41,16.3298]
[1718217967366,2.3495,157.48,157.42,2.3503]
[1718217967585,0.17,157.49,157.42,2.3503]
[1718217967790,2.3495,157.48,157.42,2.3503]
[1718217967987,0.17,157.52,157.41,16.3298]
[1718217968298,2.3487,157.53,157.46,2.3497]
[1718217968498,12.77010256,157.6,157.43,2.3502]
[1718217968717,12.77010256,157.6,157.42,20.0]
[1718217968718,2.3494,157.49,157.42,22.3503]
[1718217968887,2.3489,157.52,157.42,20.0]
[1718217969087,15.01094064,157.6,157.42,20.0]
[1718217969393,4.697,157.55,157.42,20.0]
[1718217969594,2.3489,157.52,157.42,20.0]
[1718217969822,2.349,157.52,157.42,20.0]
[1718217970112,21.60621226,157.61,157.44,0.17]
[1718217970289,12.43833683,157.64,157.44,0.17]
[1718217970290,11.74,157.58,157.44,20.0]
[1718217970493,100.0,157.61,157.43,6.6217]
[1718217970708,2.3491,157.51,157.43,6.6217]
[1718217970903,4.6976,157.53,157.43,6.6217]
[1718217971205,2.3494,157.49,157.43,6.6217]
[1718217971387,22.3491,157.51,157.43,6.6217]
[1718217971584,0.17,157.54,157.43,6.6217]
[1718217971783,2.3491,157.51,157.44,20.0]
[1718217972190,2.3495,157.48,157.43,6.6217]
[1718217972628,4.8688,157.49,157.43,6.6217]
[1718217972793,2.3497,157.47,157.43,6.6217]
[1718217973319,6.3509,157.59,157.41,16.3298]
[1718217973489,2.3494,157.49,157.41,16.3298]
[1718217973814,2.3491,157.51,157.44,2.3501]
[1718217973995,2.3492,157.5,157.44,2.3501]
[1718217974196,20.17,157.53,157.45,2.3499]
[1718217974197,2.3491,157.51,157.45,2.3499]
[1718217974398,22.3488,157.53,157.42,20.0]
[1718217974708,2.3489,157.52,157.46,2.3496]
[1718217974892,2.3488,157.53,157.46,2.3496]
[1718217975424,2.3483,157.56,157.45,0.17]
[1718217975602,2.3483,157.56,157.45,20.51]
[1718217976021,2.3485,157.55,157.45,20.51]
[1718217976220,4.6964,157.57,157.45,20.51]
[1718217977025,4.6975,157.53,157.44,6.3245]
[1718217977229,2.3494,157.49,157.44,6.3245]
[1718217977406,11.7432,157.54,157.44,6.3245]
[1718217977590,2.3489,157.52,157.44,6.3245]
[1718217977795,2.689,157.51,157.44,6.3245]
[1718217978019,2.3492,157.5,157.44,6.3245]
[1718217978413,2.6891,157.51,157.44,6.3245]
[1718217978834,0.34,157.51,157.45,2.3498]
[1718217979002,22.3486,157.54,157.44,6.3245]
[1718217979198,2.3486,157.54,157.48,2.3494]
[1718217979400,2.6885,157.55,157.48,2.3494]
[1718217979627,2.3491,157.51,157.45,20.0]
[1718217979807,0.34,157.54,157.44,6.3245]
[1718217980016,0.17,157.5,157.44,6.3245]
[1718217980200,2.3497,157.47,157.44,6.3245]
[1718217980395,2.35,157.45,157.41,16.3298]
[1718217980623,0.34,157.48,157.41,16.3298]
[1718217980803,0.17,157.48,157.41,16.3298]
[1718217981301,0.34,157.48,157.41,16.3298]
[1718217981497,2.3502,157.43,157.35,6.3426]
[1718217981703,2.3503,157.43,157.36,2.3512]
[1718217981906,2.3503,157.43,157.37,2.3511]
[1718217982137,2.3506,157.41,157.35,6.3426]
[1718217982338,2.3508,157.39,157.35,6.3426]
[1718217982621,0.34,157.42,157.35,6.3426]
[1718217982834,0.51,157.43,157.37,2.351]
[1718217983033,0.17,157.44,157.38,2.3509]
[1718217983198,0.17,157.45,157.35,6.3426]
[1718217983404,2.5201,157.44,157.37,2.3511]
[1718217983605,0.51,157.43,157.35,6.3426]
[1718217983921,20.4954,157.45,157.36,20.0]
[1718217984119,0.4954,157.45,157.36,20.0]
[1718217984327,2.3493,157.49,157.37,0.17]
[1718217984498,2.3495,157.48,157.41,2.3504]
[1718217984699,2.3493,157.49,157.42,2.3503]
[1718217984925,19.01,157.5,157.38,20.0]
[1718217985233,4.6993,157.47,157.37,45.0]
[1718217985413,2.3503,157.43,157.36,2.3511]
[1718217985599,2.3504,157.42,157.36,20.0]
[1718217985803,0.17,157.46,157.36,20.0]
[1718217986030,2.3501,157.44,157.37,2.3511]
[1718217986354,0.17,157.43,157.37,2.3511]
[1718217986529,0.68,157.46,157.41,2.3505]
[1718217986835,2.3504,157.42,157.36,20.0]
[1718217987137,0.68,157.46,157.36,20.0]
[1718217987302,2.3502,157.44,157.37,2.351]
[1718217987502,0.68,157.46,157.36,20.0]
[1718217988015,4.7011,157.41,157.35,6.3426]
[1718217988326,2.3508,157.39,157.35,6.3426]
[1718217988504,0.51,157.46,157.27,27.12954582]
[1718217988505,5.0416,157.4,157.27,27.12954582]
[1718217988706,2.3512,157.37,157.28,22.0702]
[1718217988904,0.51,157.4,157.33,2.3517]
[1718217989104,0.17,157.39,157.31,2.352]
[1718217989401,0.51,157.4,157.33,2.3515]
[1718217989402,2.5207,157.4,157.33,2.3515]
[1718217989602,2.5211,157.38,157.31,2.3519]
[1718217989802,0.17,157.37,157.29,2.3523]
[1718217990027,2.6912,157.37,157.3,2.3521]
[1718217990238,2.3509,157.39,157.32,2.3518]
[1718217990417,0.51,157.4,157.28,22.0702]
[1718217990620,2.3509,157.39,157.32,2.3517]
[1718217990827,0.51,157.38,157.28,22.0702]
[1718217991036,2.3515,157.35,157.29,2.3523]
[1718217991222,2.3512,157.37,157.3,2.352]
[1718217991534,2.3517,157.34,157.28,22.0702]
[1718217991739,2.3517,157.33,157.28,22.0702]
[1718217992143,0.17,157.35,157.28,22.0702]
[1718217992318,2.3517,157.33,157.28,22.0702]
[1718217992514,2.3516,157.34,157.28,22.0702]
[1718217992714,2.352,157.31,157.27,0.03954582]
[1718217992922,2.3519,157.32,157.27,0.03954582]
[1718217993227,0.34,157.33,157.27,0.03954582]
[1718217993434,2.3523,157.3,157.27,0.03954582]
[1718217993826,11.9291,157.33,157.27,0.03954582]
[1718217993827,2.3521,157.31,157.27,0.03954582]
[1718217994026,2.5224,157.28,157.27,0.03954582]
[1718217994331,42.7046,157.28,157.27,0.03954582]
[1718217994526,108.2146,157.28,157.27,0.03954582]
[1718217994946,23.0324,157.28,157.27,0.03954582]
[1718217995151,42.0424,157.28,157.27,0.03954582]
[1718217995319,108.2146,157.28,157.27,0.03954582]
[1718217995716,108.2146,157.28,157.27,4.582e-05]
[1718217996339,2.3538,157.19,157.12,2.3548]
[1718217996528,0.34,157.2,157.1,2.355]
[1718217996844,0.17,157.18,157.1,2.355]
[1718217997136,0.17,157.17,157.11,2.355]
[1718217997315,0.34,157.17,157.12,2.3548]
[1718217997639,2.3543,157.16,157.09,8.6631]
[1718217997819,0.34,157.17,157.09,6.3079]
[1718217997820,2.3544,157.15,157.09,6.3079]
[1718217998026,0.34,157.18,157.09,6.3079]
[1718217998220,2.3542,157.17,157.09,8.6631]
[1718217998431,0.34,157.18,157.09,8.6631]
[1718217998738,0.17,157.15,157.09,8.6631]
[1718217998942,2.5246,157.14,157.07,2.3555]
[1718217999122,2.5246,157.14,157.0,5.01922565]
[1718217999439,0.34,157.13,157.03,4.7124]
[1718217999625,0.17,157.12,157.03,4.7124]
[1718217999824,2.2097,157.14,157.0,2.546343]
[1718218000031,2.2097,157.14,157.05,4.7118]
[1718218000350,2.2097,157.14,157.09,2.3553]
[1718218000646,2.2097,157.14,157.05,4.7118]
[1718218000833,2.2097,157.14,157.08,2.3554]
[1718218001137,2.2097,157.14,157.02,0.17]
[1718218001138,2.0397,157.14,157.02,0.17]
[1718218001361,6.2446,157.27,157.09,106.3902]
[1718218001640,2.3529,157.25,157.18,2.3539]
[1718218001836,2.3529,157.25,157.1,0.34]
[1718218001837,2.3531,157.24,157.17,2.3541]
[1718218002045,2.0397,157.25,157.11,0.17]
[1718218002235,2.0397,157.25,157.2,2.3535]
[1718218002423,2.0397,157.25,157.21,2.3534]
[1718218002626,2.0397,157.25,157.2,2.3536]
[1718218002828,2.0397,157.25,157.13,20.0]
[1718218003126,2.0397,157.25,157.16,2.3541]
[1718218003327,4.3927,157.24,157.17,2.354]
[1718218003533,2.0396,157.24,157.2,2.3536]
[1718218003718,6.2446,157.32,157.22,2.3533]
[1718218003922,2.0396,157.31,157.2,2.3535]
[1718218004221,2.3528,157.26,157.19,2.3537]
[1718218004423,2.3528,157.26,157.13,20.0]